[Event "Seniors-LEM-65 Sachsen-Anhalt 2024"]
[Site "Magdeburg"]
[Date "2024.07.03"]
[Round "3.22"]
[White "Krueger, Erich"]
[Black "Gagelmann, Andreas"]
[Result "1-0"]
[ECO "A52"]
[WhiteElo "2095"]
[BlackElo "1883"]
[Annotator "NA RC"]
[PlyCount "109"]
[EventDate "2024.06.25"]
[EventType "swiss"]
[EventCountry "GER"]
[SourceTitle "playchess.com"]
[Source "ChessBase"]
[SourceQuality "1"]
[TimeControl "40/5400+30:1800+30"]

1. d4 {[%emt 0:00:03]} Nf6 {[%emt 0:00:09]} 2. c4 {[%emt 0:00:41]} e5 {[%emt 0:00:57]} 3. dxe5 {[%emt 0:00:09]} Ng4 {[%emt 0:00:04]} 4. Bf4 {[%emt 0:00:09]} g5 {[%emt 0:01:09]} 5. Bg3 {[%emt 0:00:12]} Bg7 {[%emt 0:00:36]} 6. Nf3 {[%emt 0:00:10]} Nc6 {[%emt 0:01:00]} 7. h4 {[%emt 0:00:36]} Ngxe5 {[%emt 0:02:03] A52: Budapest Gambit.} 8. Nxe5 {[%emt 0:02:07]} Nxe5 {[%emt 0:01:30]} 9. e3 {[%emt 0:09:29]} d6 {[%emt 0:05:05]} 10. hxg5 {[%emt 0:00:59]} Bg4 {[%emt 0:09:43]} 11. Qc2 {[%emt 0:02:36]} Qxg5 {[%emt 0:08:27]} 12. Nc3 {[%emt 0:09:02]} O-O-O {[%emt 0:04:59]} 13. Be2 {[%emt 0:07:13]} Bxe2 {[%emt 0:06:21]} 14. Qxe2 {[%emt 0:02:25]} Rde8 {[%emt 0:04:06]} 15. O-O-O {[%emt 0:08:26]} Ng4 {[%emt 0:12:33]} (15... h5 $11) 16. Nd5 {[%emt 0:07:59]} Kb8 $2 {[%emt 0:15:23]} (16... Nf6 $14) 17. Rh4 {[%emt 0:08:29]} Nf6 {[%emt 0:03:39]} 18. Nxf6 {[%emt 0:05:00]} Qxf6 {[%emt 0:02:30]} 19. Rf4 {[%emt 0:02:10]} ({White should play} 19. Rd5 $14) 19... Qg6 {[%emt 0:00:37]} (19... Qe6 $1 $11) 20. Rg4 {[%emt 0:02:33]} Qh5 {[%emt 0:06:06]} 21. Qf3 {[%emt 0:04:00]} Be5 {[%emt 0:02:07]} 22. Bxe5 {[%emt 0:01:06]} Rxe5 {[%emt 0:00:58]} 23. Qg3 {[%emt 0:02:47]} ({White should play} 23. Rf4 $16) 23... Rhe8 {[%emt 0:02:37]} 24. Rg8 {[%emt 0:07:50]} (24. Rdd4 $14) 24... Qe2 {[%emt 0:00:59]} 25. Rxe8+ {[%emt 0:05:36]} Rxe8 {[%emt 0:00:09]} 26. Qf4 $11 {[%emt 0:00:19]} Qh5 {[%emt 0:02:48]} 27. Rd5 {[%emt 0:02:13]} Qh1+ {[%emt 0:00:37]} 28. Kc2 {[%emt 0:00:21]} Qxg2 {[%emt 0:00:15]} 29. Qxf7 {[%emt 0:00:15]} Qe4+ {[%emt 0:00:38]} 30. Kc3 {[%emt 0:01:14]} b6 {[%emt 0:00:37]} 31. Rh5 {[%emt 0:01:54]} Re7 {[%emt 0:01:46]} 32. Qg8+ {[%emt 0:00:18]} Kb7 {[%emt 0:00:15]} 33. Qd5+ {[%emt 0:00:25]} Qxd5 {[%emt 0:00:12]} 34. cxd5 {[%emt 0:00:49]} Kc8 {[%emt 0:01:27]} 35. Kd4 {[%emt 0:00:41]} Kd7 {[%emt 0:00:38]} 36. e4 {[%emt 0:01:43]} c6 {[%emt 0:03:25]} 37. dxc6+ {[%emt 0:00:34]} Kxc6 {[%emt 0:00:01]} 38. f4 {[%emt 0:00:14]} Rf7 {[%emt 0:01:17]} 39. f5 {[%emt 0:01:06]} Re7 {[%emt 0:00:36]} 40. f6 {[%emt 0:02:54]} Rf7 {[%emt 0:01:06]} 41. e5 {[%emt 0:30:17]} dxe5+ {[%emt 0:04:31]} 42. Kxe5 {[%emt 0:00:00]} Kd7 {[%emt 0:00:28]} 43. Rh3 {[%emt 0:00:00]} Ke8 {[%emt 0:02:43]} 44. Rg3 {[%emt 0:00:00]} Kf8 {[%emt 0:07:30]} 45. Rc3 {[%emt 0:00:00]} Kg8 {[%emt 0:07:46]} 46. Ke6 {[%emt 0:00:00]} h5 {[%emt 0:01:15]} 47. Rc8+ {[%emt 0:00:00]} Rf8 {[%emt 0:00:45]} 48. Rc7 {[%emt 0:00:00]} h4 {[%emt 0:02:28]} 49. Rg7+ {[%emt 0:00:00]} Kh8 {[%emt 0:00:28]} 50. Rg4 {[%emt 0:00:00]} Rc8 {[%emt 0:02:33]} 51. Rxh4+ {[%emt 0:00:00]} Kg8 {[%emt 0:00:07]} 52. f7+ {[%emt 0:00:00]} Kg7 {[%emt 0:00:45]} 53. Rg4+ {[%emt 0:00:00]} Kh7 {[%emt 0:00:46]} 54. Kd7 {[%emt 0:00:00]} Rb8 {[%emt 0:00:18]} 55. Ke7 {[%emt 0:00:00]} 1-0

[Event "Seniors-LEM-65 Sachsen-Anhalt 2024"]
[Site "Magdeburg"]
[Date "2024.07.03"]
[Round "3.23"]
[White "Barten, Ralf"]
[Black "Cordes, Lothar"]
[Result "0-1"]
[ECO "D13"]
[WhiteElo "1970"]
[BlackElo "1858"]
[Annotator "NA RC"]
[PlyCount "92"]
[EventDate "2024.06.25"]
[EventType "swiss"]
[EventCountry "GER"]
[SourceTitle "playchess.com"]
[Source "ChessBase"]
[SourceQuality "1"]
[TimeControl "40/5400+30:1800+30"]

1. Nf3 {[%emt 0:00:04]} d5 {[%emt 0:00:24]} 2. d4 {[%emt 0:00:07]} Nf6 {[%emt 0:00:18]} 3. c4 {[%emt 0:00:24]} c6 {[%emt 0:00:19]} 4. Nc3 {[%emt 0:00:23]} Bf5 {[%emt 0:00:41]} 5. cxd5 {[%emt 0:01:13]} cxd5 {[%emt 0:00:15]} 6. Qb3 {[%emt 0:01:05]} Bc8 {[%emt 0:03:12]} 7. Bg5 {[%emt 0:02:38] D13: Slav Defence: Exchange variation without ...Bf5.} e6 {[%emt 0:00:40]} 8. e3 {[%emt 0:04:01]} Be7 {[%emt 0:02:54]} 9. Bb5+ {[%emt 0:01:10]} Nc6 {[%emt 0:03:49]} 10. Ne5 {[%emt 0:08:47]} Bd7 {[%emt 0:01:19]} 11. Nxd7 {[%emt 0:08:31]} Qxd7 {[%emt 0:01:15]} 12. Qa4 {[%emt 0:01:29]} O-O {[%emt 0:01:04]} 13. Bxc6 {[%emt 0:05:21]} bxc6 {[%emt 0:04:38]} 14. O-O {[%emt 0:04:08]} Qb7 {[%emt 0:03:36]} 15. Qc2 {[%emt 0:01:02]} c5 {[%emt 0:01:36]} 16. dxc5 {[%emt 0:03:27]} Bxc5 {[%emt 0:00:10]} 17. Rac1 {[%emt 0:04:00]} Be7 {[%emt 0:01:10]} 18. Qe2 {[%emt 0:01:40]} Rfc8 {[%emt 0:07:19]} 19. Rc2 {[%emt 0:02:36]} Rc6 {[%emt 0:08:11]} 20. Rfc1 {[%emt 0:00:58]} Rac8 {[%emt 0:07:36]} 21. Qd3 {[%emt 0:02:16]} Qb4 {[%emt 0:05:08]} (21... h6 $15 {feels stronger.} 22. Bh4 Kf8) 22. g3 {[%emt 0:08:37]} Qc4 {[%emt 0:05:41]} 23. Qxc4 {[%emt 0:12:08]} Rxc4 {[%emt 0:00:30]} 24. Rd1 {[%emt 0:03:03]} Bb4 {[%emt 0:02:22]} 25. Bxf6 {[%emt 0:03:51]} gxf6 {[%emt 0:00:08]} 26. Rd3 $1 {[%emt 0:00:27]} R8c5 {[%emt 0:07:36]} (26... f5 $15) 27. Kf1 {[%emt 0:02:03]} e5 {[%emt 0:07:08]} 28. Rcd2 {[%emt 0:02:11]} Bxc3 {[%emt 0:01:39]} 29. bxc3 {[%emt 0:01:02]} Ra4 {[%emt 0:06:05]} 30. Rxd5 {[%emt 0:02:41]} Rxd5 {[%emt 0:00:10]} 31. Rxd5 {[%emt 0:00:03]} Rxa2 {[%emt 0:00:07]} 32. Rd8+ {[%emt 0:00:44]} Kg7 {[%emt 0:00:10]} 33. c4 {[%emt 0:00:09]} a5 {[%emt 0:00:33]} 34. Ra8 {[%emt 0:00:27]} Rc2 {[%emt 0:00:20]} 35. Rxa5 {[%emt 0:00:12]} Rxc4 {[%emt 0:00:11]} 36. Kg2 {[%emt 0:00:32]} Rb4 {[%emt 0:00:57]} 37. h3 {[%emt 0:01:11]} Rc4 {[%emt 0:01:10]} 38. Kf3 $11 {[%emt 0:00:47]} Kg6 {[%emt 0:00:57]} 39. Ra8 {[%emt 0:00:38]} f5 {[%emt 0:03:32]} 40. Rg8+ {[%emt 0:04:09]} Kf6 {[%emt 0:00:16]} 41. Ra8 {[%emt 0:31:34]} h5 {[%emt 0:31:48]} 42. Rh8 {[%emt 0:01:56]} Kg6 {[%emt 0:00:29]} 43. h4 {[%emt 0:01:03]} e4+ {[%emt 0:01:46]} 44. Kf4 {[%emt 0:00:56]} Rc2 {[%emt 0:00:21]} 45. Rg8+ {[%emt 0:00:26]} Kf6 {[%emt 0:00:27]} 46. f3 {[%emt 0:00:41]} Rf2 {[%emt 0:00:15]} 0-1

[Event "Seniors-LEM-65 Sachsen-Anhalt 2024"]
[Site "Magdeburg"]
[Date "2024.07.03"]
[Round "3.24"]
[White "Wolke, Reimund"]
[Black "Domsgen, Bernd"]
[Result "1-0"]
[ECO "B07"]
[WhiteElo "1871"]
[BlackElo "1963"]
[Annotator "NA RC"]
[PlyCount "63"]
[EventDate "2024.06.25"]
[EventType "swiss"]
[EventCountry "GER"]
[SourceTitle "playchess.com"]
[Source "ChessBase"]
[SourceQuality "1"]
[TimeControl "40/5400+30:1800+30"]

1. e4 {[%emt 0:00:07]} c5 {[%emt 0:00:06]} 2. c3 {[%emt 0:00:12]} g6 {[%emt 0:00:24]} 3. d4 {[%emt 0:00:18]} cxd4 {[%emt 0:00:16]} 4. cxd4 {[%emt 0:00:19]} Bg7 {[%emt 0:00:06]} 5. Nf3 {[%emt 0:00:23]} Nc6 {[%emt 0:02:14]} 6. Nc3 {[%emt 0:00:59]} d6 {[%emt 0:00:37]} 7. h3 {[%emt 0:00:53]} Nf6 {[%emt 0:00:23]} 8. Bd3 {[%emt 0:00:55]} O-O {[%emt 0:00:22]} 9. O-O {[%emt 0:00:53]} a6 {[%emt 0:04:12]} 10. d5 {[%emt 0:01:26] B07: Pirc Defence: Miscellaneous Systems.} Na7 {[%emt 0:02:03]} 11. Be3 {[%emt 0:02:46]} Bd7 {[%emt 0:01:35]} 12. a4 {[%emt 0:01:54]} Qa5 {[%emt 0:23:00]} 13. Bd4 {[%emt 0:10:48]} Nc8 {[%emt 0:05:17]} 14. Qe2 {[%emt 0:11:30]} e5 {[%emt 0:03:29]} 15. dxe6 {[%emt 0:09:00]} Bxe6 {[%emt 0:00:33]} 16. b4 {[%emt 0:02:28]} Qh5 {[%emt 0:03:26] [#]} 17. a5 $2 {[%emt 0:05:07]} (17. Qd2 $1 $18) 17... Ne7 {[%emt 0:00:38]} 18. b5 {[%emt 0:01:03]} axb5 {[%emt 0:00:27]} 19. Nxb5 {[%emt 0:03:12]} Nc6 {[%emt 0:00:50]} 20. Bc3 {[%emt 0:03:52]} d5 {[%emt 0:10:11]} 21. Qb2 $2 {[%emt 0:08:13] [#]} (21. e5 $14 {keeps the upper hand.} Nd7 22. Rfe1 (22. Nc7 Rac8 $14)) 21... dxe4 {[%emt 0:04:21] [#]} (21... Bxh3 $1 $17 22. exd5 (22. Bxf6 Bxg2 23. Nh2 Bxf6 $17) 22... Bxg2 23. Kxg2 Qg4+ 24. Kh2 Qxf3) 22. Bxe4 $1 {[%emt 0:01:54]} Nxe4 {[%emt 0:02:57]} 23. Bxg7 {[%emt 0:00:17]} Rfd8 {[%emt 0:01:31]} 24. Rfe1 {[%emt 0:04:25]} Nc5 {[%emt 0:03:30]} 25. Re3 {[%emt 0:05:57]} Ne7 {[%emt 0:04:48]} 26. Bf6 $2 {[%emt 0:01:13]} ({Better is} 26. Bh8 $18 {[%csl Gh8][%cal Rb2g7]} Qh6 27. Bd4 (27. Nc7 Nd5 $16)) 26... Nf5 {[%emt 0:01:19]} 27. Rc3 {[%emt 0:03:50]} Ne4 {[%emt 0:08:01]} 28. Rc7 $2 {[%emt 0:01:47]} (28. Bxd8 $18 Rxd8 29. Rca3) 28... Rd7 {[%emt 0:06:09]} (28... Re8 $14) 29. Be5 $2 {[%emt 0:00:52]} (29. Rxd7 $18 Bxd7 30. Nc7) 29... Ng5 $18 {[%emt 0:03:15]} (29... Nh4 $1 $11 30. Rxd7 Nxf3+ 31. gxf3 Ng5) 30. Nxg5 {[%emt 0:01:10]} Qxg5 {[%emt 0:00:02]} 31. Rac1 $2 {[%emt 0:01:01]} (31. Rxd7 $18 Bxd7 32. Nc7) 31... Rxa5 {[%emt 0:04:39]} 32. Bf6 {[%emt 0:17:46]} 1-0

[Event "Seniors-LEM-65 Sachsen-Anhalt 2024"]
[Site "Magdeburg"]
[Date "2024.07.03"]
[Round "3.25"]
[White "Onasch, Gunnar"]
[Black "Schwarz, Hans"]
[Result "1-0"]
[ECO "A90"]
[WhiteElo "1949"]
[BlackElo "1856"]
[Annotator "NA RC"]
[PlyCount "97"]
[EventDate "2024.06.25"]
[EventType "swiss"]
[EventCountry "GER"]
[SourceTitle "playchess.com"]
[Source "ChessBase"]
[SourceQuality "1"]
[TimeControl "40/5400+30:1800+30"]

1. d4 {[%emt 0:00:03]} e6 {[%emt 0:00:09]} 2. c4 {[%emt 0:00:06]} f5 {[%emt 0:00:05]} 3. g3 {[%emt 0:00:10]} Nf6 {[%emt 0:00:25]} 4. Nc3 {[%emt 0:00:17]} d5 {[%emt 0:00:10]} 5. Bg2 {[%emt 0:00:32]} c6 {[%emt 0:00:08]} 6. Bf4 {[%emt 0:00:57] A90: Dutch Defence: Miscellaneous and Modern Stonewall (with ...Bd6).} Bd6 {[%emt 0:03:45]} 7. Bxd6 {[%emt 0:02:06]} Qxd6 {[%emt 0:00:09]} 8. Nf3 {[%emt 0:02:28]} Nbd7 {[%emt 0:03:41]} 9. e3 {[%emt 0:06:35]} O-O {[%emt 0:03:07]} 10. c5 {[%emt 0:03:23]} Qe7 {[%emt 0:05:57]} 11. O-O {[%emt 0:02:51]} Ne4 {[%emt 0:04:16]} 12. Qc2 {[%emt 0:01:10]} e5 {[%emt 0:01:46]} 13. b4 {[%emt 0:05:40]} Nxc3 {[%emt 0:03:18]} 14. Qxc3 {[%emt 0:00:04]} e4 {[%emt 0:00:15]} 15. Nd2 {[%emt 0:02:07]} Nf6 {[%emt 0:00:50]} 16. Rfb1 {[%emt 0:04:25]} Bd7 {[%emt 0:02:15]} 17. a4 {[%emt 0:00:47]} a6 {[%emt 0:00:28]} 18. Bf1 {[%emt 0:00:57]} Qe8 {[%emt 0:10:08]} 19. b5 {[%emt 0:04:06]} axb5 {[%emt 0:03:13]} 20. axb5 {[%emt 0:00:50]} Qh5 {[%emt 0:00:17]} 21. bxc6 {[%emt 0:02:00]} Bxc6 {[%emt 0:00:29]} 22. Rxa8 {[%emt 0:01:24]} Rxa8 {[%emt 0:03:30]} 23. Ra1 {[%emt 0:00:20]} Rxa1 {[%emt 0:01:10]} 24. Qxa1 {[%emt 0:00:03]} g5 {[%emt 0:00:49]} 25. Qe1 {[%emt 0:09:38]} f4 {[%emt 0:03:17]} 26. exf4 {[%emt 0:01:31]} gxf4 {[%emt 0:00:11]} 27. gxf4 {[%emt 0:06:48]} Qg4+ {[%emt 0:00:29]} 28. Bg2 {[%emt 0:05:31]} Qxf4 {[%emt 0:03:56]} 29. Qe3 {[%emt 0:01:29]} Qxe3 {[%emt 0:09:32]} 30. fxe3 {[%emt 0:00:06]} Ng4 {[%emt 0:00:53]} 31. Nf1 {[%emt 0:00:18]} Bb5 {[%emt 0:00:36]} 32. Bh3 {[%emt 0:00:24]} Bxf1 $2 {[%emt 0:02:37]} (32... Bd7 $16) 33. Bxg4 {[%emt 0:00:28]} Bc4 {[%emt 0:00:19]} 34. Bc8 {[%emt 0:00:23]} Kf7 {[%emt 0:02:20]} 35. Bxb7 {[%emt 0:00:58]} Ke7 {[%emt 0:00:08]} 36. Bc8 {[%emt 0:00:21]} Bb5 {[%emt 0:00:55]} 37. Kf2 {[%emt 0:00:25]} Bc6 {[%emt 0:01:20]} 38. Bf5 {[%emt 0:01:37]} h6 {[%emt 0:00:14]} 39. Kg3 {[%emt 0:00:45]} Kf6 {[%emt 0:00:17]} 40. Kf4 {[%emt 0:00:27]} Bb5 {[%emt 0:02:20]} 41. Bc8 {[%emt 0:30:23]} Bc6 {[%emt 0:30:45]} 42. h3 {[%emt 0:00:29]} Bb5 {[%emt 0:03:49]} 43. Bb7 {[%emt 0:01:43]} Ke6 $11 {[%emt 0:01:29]} 44. Kg4 {[%emt 0:04:09]} (44. c6 Kd6) 44... Be2+ {[%emt 0:02:45]} 45. Kf4 {[%emt 0:03:22]} Bc4 $2 {[%emt 0:01:53]} 46. Bc8+ {[%emt 0:01:03]} Kf6 {[%emt 0:01:08]} 47. c6 {[%emt 0:01:53]} Ke7 {[%emt 0:01:22]} 48. Ke5 {[%emt 0:00:33]} Kd8 {[%emt 0:00:43]} 49. Be6 {[%emt 0:00:24]} 1-0

[Event "Seniors-LEM-65 Sachsen-Anhalt 2024"]
[Site "Magdeburg"]
[Date "2024.07.03"]
[Round "3.26"]
[White "Wolff, Stefan"]
[Black "Rausch, Erik"]
[Result "1-0"]
[ECO "D37"]
[WhiteElo "1956"]
[BlackElo "1827"]
[Annotator "NA RC"]
[PlyCount "61"]
[EventDate "2024.06.25"]
[EventType "swiss"]
[EventCountry "GER"]
[SourceTitle "playchess.com"]
[Source "ChessBase"]
[SourceQuality "1"]
[TimeControl "40/5400+30:1800+30"]

1. Nf3 {[%emt 0:00:02]} Nf6 {[%emt 0:01:08]} 2. c4 {[%emt 0:00:06]} e6 {[%emt 0:00:49]} 3. Nc3 {[%emt 0:00:20]} d5 {[%emt 0:01:40]} 4. d4 {[%emt 0:00:09]} a6 {[%emt 0:02:05]} 5. Bf4 {[%emt 0:03:32]} c5 {[%emt 0:04:39]} 6. e3 {[%emt 0:01:12] D37: Queen's Gambit Declined: 5 Bf4.} dxc4 {[%emt 0:03:17]} 7. Bxc4 {[%emt 0:00:57]} b5 {[%emt 0:00:14]} 8. Bd3 {[%emt 0:03:45]} Bb7 {[%emt 0:02:18]} 9. O-O {[%emt 0:06:26]} Bd6 {[%emt 0:02:21]} 10. Bg5 {[%emt 0:09:26]} Nbd7 {[%emt 0:04:11]} 11. Ne4 {[%emt 0:09:33]} Be7 {[%emt 0:05:25]} 12. Bxf6 {[%emt 0:02:34]} gxf6 {[%emt 0:00:27]} 13. dxc5 {[%emt 0:03:08]} Nxc5 {[%emt 0:01:51]} 14. Nxc5 {[%emt 0:01:22]} Bxc5 {[%emt 0:01:55]} 15. Qe2 {[%emt 0:00:35]} Qe7 {[%emt 0:02:27]} 16. Rac1 {[%emt 0:03:21]} h5 {[%emt 0:01:38]} 17. Bxb5+ {[%emt 0:02:34]} Kf8 {[%emt 0:02:47]} 18. Bd3 {[%emt 0:05:24]} Rd8 {[%emt 0:00:27]} 19. Bxa6 {[%emt 0:01:38]} Be4 {[%emt 0:03:26]} 20. Nd2 {[%emt 0:06:25]} Bd5 {[%emt 0:04:20]} 21. Bc4 {[%emt 0:00:45]} Ba8 {[%emt 0:03:07]} 22. Rfd1 {[%emt 0:04:38]} Rg8 {[%emt 0:01:04]} 23. Nf3 $1 {[%emt 0:03:45]} (23. Qxh5 Bxg2 (23... Bxe3 $2 24. fxe3 Rxg2+ 25. Kf1 $18) 24. Qh6+ Ke8 $19) 23... Rb8 {[%emt 0:03:42]} 24. b3 {[%emt 0:01:38]} f5 {[%emt 0:04:09]} 25. Rc3 {[%emt 0:07:52]} Be4 {[%emt 0:03:46]} 26. Bd3 {[%emt 0:01:10]} Bb4 {[%emt 0:02:39]} 27. Rc2 {[%emt 0:01:41]} Bd5 {[%emt 0:02:19]} 28. e4 {[%emt 0:01:43]} fxe4 {[%emt 0:02:47]} 29. Bxe4 {[%emt 0:00:09]} Bxe4 {[%emt 0:00:50]} 30. Qxe4 {[%emt 0:00:34]} Bd6 {[%emt 0:02:27]} 31. Rcd2 $18 {[%emt 0:02:49]} 1-0

[Event "Seniors-LEM-65 Sachsen-Anhalt 2024"]
[Site "Magdeburg"]
[Date "2024.07.03"]
[Round "3.27"]
[White "Gehrmann, Dorit"]
[Black "Lehr, Thomas"]
[Result "1/2-1/2"]
[ECO "B02"]
[WhiteElo "1881"]
[BlackElo "1954"]
[Annotator "RC"]
[PlyCount "32"]
[EventDate "2024.06.25"]
[EventType "swiss"]
[EventCountry "GER"]
[SourceTitle "playchess.com"]
[Source "ChessBase"]
[SourceQuality "1"]
[TimeControl "40/5400+30:1800+30"]

1. e4 {[%emt 0:00:02]} Nf6 {[%emt 0:00:22]} 2. Nc3 {[%emt 0:00:22]} d5 {[%emt 0:00:50]} 3. exd5 {[%emt 0:00:38]} Nxd5 {[%emt 0:00:09]} 4. d4 {[%emt 0:01:13]} Bf5 {[%emt 0:02:15]} 5. Nxd5 {[%emt 0:05:05]} Qxd5 {[%emt 0:01:16]} 6. Nf3 {[%emt 0:00:37]} Qe4+ {[%emt 0:02:56]} 7. Be3 {[%emt 0:03:26]} e6 {[%emt 0:12:14]} 8. c3 {[%emt 0:04:32]} Qc2 {[%emt 0:04:49]} 9. Qxc2 {[%emt 0:03:54]} Bxc2 {[%emt 0:01:00]} 10. Be2 {[%emt 0:04:06]} Nd7 {[%emt 0:02:45]} 11. Ne5 {[%emt 0:05:34]} Nxe5 {[%emt 0:29:47]} 12. dxe5 {[%emt 0:00:11]} Be4 {[%emt 0:00:21]} 13. O-O {[%emt 0:02:30]} O-O-O {[%emt 0:06:31]} 14. Bg5 {[%emt 0:06:36]} Rd5 {[%emt 0:05:25]} 15. Rfd1 {[%emt 0:03:41]} Bc5 {[%emt 0:02:58]} 16. Rxd5 {[%emt 0:02:25]} Bxd5 {[%emt 0:00:30]} 1/2-1/2

[Event "Seniors-LEM-65 Sachsen-Anhalt 2024"]
[Site "Magdeburg"]
[Date "2024.07.03"]
[Round "3.28"]
[White "Luebeck, Stephan"]
[Black "Hauke, Hans"]
[Result "1-0"]
[ECO "D05"]
[WhiteElo "1942"]
[BlackElo "1824"]
[Annotator "NA RC"]
[PlyCount "87"]
[EventDate "2024.06.25"]
[EventType "swiss"]
[EventCountry "GER"]
[SourceTitle "playchess.com"]
[Source "ChessBase"]
[SourceQuality "1"]
[TimeControl "40/5400+30:1800+30"]

1. d4 {[%emt 0:00:02]} d5 {[%emt 0:00:26]} 2. Nf3 {[%emt 0:00:06]} Nf6 {[%emt 0:00:15]} 3. e3 {[%emt 0:00:08]} e6 {[%emt 0:01:38]} 4. Nbd2 {[%emt 0:00:06]} Be7 {[%emt 0:00:10]} 5. Bd3 {[%emt 0:00:07]} O-O {[%emt 0:00:40]} 6. Ne5 {[%emt 0:01:32] D05: Colle System with ...e6.} Nbd7 {[%emt 0:00:24]} 7. f4 {[%emt 0:00:06]} c5 {[%emt 0:00:34]} 8. c3 {[%emt 0:00:05]} b6 {[%emt 0:10:14]} 9. O-O {[%emt 0:01:14]} a5 {[%emt 0:00:45]} 10. Rf3 {[%emt 0:03:15]} Bb7 {[%emt 0:02:38]} 11. Rh3 {[%emt 0:00:18]} Ne4 {[%emt 0:01:49]} 12. Qh5 {[%emt 0:09:55]} Ndf6 {[%emt 0:01:15]} 13. Qf3 {[%emt 0:09:07]} c4 {[%emt 0:13:15]} 14. Bc2 {[%emt 0:04:29]} b5 {[%emt 0:00:21]} 15. g4 {[%emt 0:01:43]} g6 {[%emt 0:04:08]} 16. g5 {[%emt 0:21:08]} (16. Rh6 $1 $14) 16... Nd7 {[%emt 0:22:00]} 17. Qg4 {[%emt 0:07:15]} Kg7 {[%emt 0:01:04]} 18. Qh4 {[%emt 0:12:35]} Rh8 {[%emt 0:00:09]} 19. Ng4 {[%emt 0:10:41] [#]} f6 {[%emt 0:09:11]} (19... h5 $1 $17 {and life is bright.} 20. Nxe4 dxe4 (20... hxg4 21. Qxh8+ Qxh8 22. Rxh8 $11)) 20. Nxe4 {[%emt 0:01:24]} dxe4 {[%emt 0:00:12]} 21. gxf6+ {[%emt 0:05:15]} Bxf6 {[%emt 0:01:43]} 22. Qg3 {[%emt 0:02:54]} Be7 $1 {[%emt 0:03:37]} 23. Qg2 {[%emt 0:00:39]} Nf6 {[%emt 0:06:20]} 24. Nxf6 {[%emt 0:00:15]} Bxf6 {[%emt 0:00:07]} 25. Bxe4 {[%emt 0:00:05]} Bxe4 {[%emt 0:00:28]} 26. Qxe4 {[%emt 0:00:08]} Qd7 {[%emt 0:01:01]} 27. Rg3 {[%emt 0:01:38]} b4 {[%emt 0:00:51]} 28. Bd2 {[%emt 0:00:09]} bxc3 {[%emt 0:00:33]} 29. Bxc3 {[%emt 0:00:12]} Rhe8 {[%emt 0:01:00]} 30. Qg2 {[%emt 0:01:45]} a4 $16 {[%emt 0:01:25]} 31. a3 {[%emt 0:00:06]} Qd5 {[%emt 0:01:00]} 32. Rd1 {[%emt 0:01:07]} Qf5 {[%emt 0:01:11]} 33. Qf3 {[%emt 0:01:52]} Rac8 {[%emt 0:04:08]} 34. Rg2 {[%emt 0:00:44]} Kf7 {[%emt 0:00:48]} 35. e4 {[%emt 0:01:35]} Qb5 {[%emt 0:00:51]} 36. Rgd2 {[%emt 0:00:59]} Be7 {[%emt 0:01:45]} 37. Qh3 {[%emt 0:01:06]} h5 {[%emt 0:01:32]} 38. Qg3 {[%emt 0:01:50]} Rg8 {[%emt 0:00:45]} 39. d5 {[%emt 0:00:56]} g5 {[%emt 0:05:02]} 40. dxe6+ {[%emt 0:00:31]} Kxe6 {[%emt 0:00:39]} 41. Qh3+ {[%emt 0:09:55]} g4 {[%emt 0:00:26]} 42. f5+ {[%emt 0:00:08]} Kf7 {[%emt 0:00:19]} 43. Qxh5+ {[%emt 0:00:10]} Kf8 {[%emt 0:00:36]} 44. Qh6+ {[%emt 0:01:33]} 1-0

[Event "Seniors-LEM-65 Sachsen-Anhalt 2024"]
[Site "Magdeburg"]
[Date "2024.07.03"]
[Round "3.29"]
[White "Niebuhr, Gerd"]
[Black "Reimann, Reinhold"]
[Result "1-0"]
[ECO "D38"]
[WhiteElo "1917"]
[BlackElo "1888"]
[Annotator "NA RC"]
[PlyCount "53"]
[EventDate "2024.06.25"]
[EventType "swiss"]
[EventCountry "GER"]
[SourceTitle "playchess.com"]
[Source "ChessBase"]
[SourceQuality "1"]
[TimeControl "40/5400+30:1800+30"]

1. d4 {[%emt 0:00:17]} e6 {[%emt 0:00:17]} 2. c4 {[%emt 0:00:30]} d5 {[%emt 0:00:26]} 3. Nc3 {[%emt 0:00:39]} Bb4 {[%emt 0:01:13]} 4. Nf3 {[%emt 0:01:11]} Nf6 {[%emt 0:00:33]} 5. e3 {[%emt 0:00:49]} Ne4 {[%emt 0:01:59]} 6. Qb3 {[%emt 0:00:43]} Bxc3+ {[%emt 0:00:57]} 7. bxc3 {[%emt 0:00:22]} O-O {[%emt 0:00:20]} 8. Bd3 {[%emt 0:00:35]} f5 {[%emt 0:02:36]} 9. O-O {[%emt 0:00:48]} c6 {[%emt 0:01:13]} 10. cxd5 {[%emt 0:08:30]} exd5 {[%emt 0:04:06]} 11. c4 {[%emt 0:03:39]} b6 {[%emt 0:05:06]} 12. cxd5 {[%emt 0:02:30]} cxd5 {[%emt 0:01:18]} 13. Ne5 {[%emt 0:09:09]} Ba6 {[%emt 0:04:57]} 14. f3 {[%emt 0:00:45]} Bxd3 {[%emt 0:00:57]} 15. Qxd3 {[%emt 0:03:51]} Nd6 {[%emt 0:01:37]} 16. Ba3 {[%emt 0:01:11]} Rf6 {[%emt 0:01:13]} 17. Rac1 {[%emt 0:01:36]} Nf7 {[%emt 0:02:30]} 18. Qb3 {[%emt 0:02:38]} Nxe5 {[%emt 0:01:39]} 19. dxe5 {[%emt 0:00:10]} Rc6 {[%emt 0:01:58]} 20. e4 {[%emt 0:01:08]} Rxc1 {[%emt 0:01:53]} 21. Rxc1 {[%emt 0:00:18]} fxe4 {[%emt 0:00:42]} 22. fxe4 {[%emt 0:00:26]} Na6 {[%emt 0:00:35]} 23. Qxd5+ {[%emt 0:00:49]} Kh8 {[%emt 0:03:56]} 24. e6 {[%emt 0:02:04]} Rc8 {[%emt 0:04:24]} 25. e7 {[%emt 0:04:25]} Rxc1+ {[%emt 0:02:37]} 26. Bxc1 {[%emt 0:00:11]} Qxd5 {[%emt 0:00:18]} 27. exd5 {[%emt 0:00:20]} 1-0